fUSD/lending_fUSD_20250515
["ID","MTS","AMOUNT","RATE_DAILY","PERIOD"]
[361165566,1747315833759,-493.66,0.00012999,2]
[361165567,1747315833769,-400.0,0.00012999,2]
[361165568,1747315833779,-400.0,0.00012999,2]
[361165569,1747315833789,-400.0,0.00012999,2]
[361165570,1747315833799,-400.0,0.00012999,2]
[361165571,1747315833809,-400.0,0.00012999,2]
[361165572,1747315833819,-255.84203659,0.00012999,2]
[361165573,1747315833829,-400.0,0.00012999,2]
[361165574,1747315833839,-400.0,0.00012999,2]
[361165575,1747315833850,-794.52,0.00012999,2]
[361165576,1747315833860,-400.0,0.00012999,2]
[361165577,1747315833870,-333.54187228,0.00012999,2]
[361165578,1747315833880,-400.0,0.00012999,2]
[361165579,1747315833890,-2679.4,0.00012999,2]
[361165580,1747315833900,-400.0,0.00012999,2]
[361165581,1747315833910,-588.02,0.00012999,2]
[361165582,1747315833920,-173.67,0.00012999,2]
[361165583,1747315833930,-400.0,0.00012999,2]
[361165584,1747315833940,-400.0,0.00012999,2]
[361165585,1747315833950,-662.22,0.00012999,2]
[361165586,1747315833961,-758.05,0.00012999,2]
[361165587,1747315833971,-400.0,0.00012999,2]
[361165588,1747315833981,-3316.51,0.00012999,2]
[361165589,1747315833990,-400.0,0.00012999,2]
[361165590,1747315834001,-400.0,0.00012999,2]
[361165591,1747315834010,-400.0,0.00012999,2]
[361165592,1747315834020,-400.0,0.00012999,2]
[361165593,1747315834030,-400.0,0.00012999,2]
[361165594,1747315834041,-400.0,0.00012999,2]
[361165595,1747315834051,-549.52,0.00012999,2]
[361165596,1747315834060,-1744.05,0.00012999,2]
[361165597,1747315834070,-421.52,0.00012999,2]
[361165598,1747315834083,-400.0,0.00012999,2]
[361165599,1747315834092,-400.0,0.00012999,2]
[361165600,1747315834102,-400.0,0.00012999,2]
[361165601,1747315834112,-400.0,0.00012999,2]
[361165602,1747315834122,-400.0,0.00012999,2]
[361165603,1747315834132,-473.19550001,0.00012999,2]
[361165604,1747315834142,-15130.72,0.00012999,2]
[361165605,1747315834152,-400.0,0.00012999,2]
[361165606,1747315834162,-450.0,0.00012999,2]
[361165607,1747315834174,-400.0,0.00012999,2]
[361165608,1747315834184,-400.0,0.00012999,2]
[361165609,1747315834194,-530.97,0.00012999,2]
[361165610,1747315834204,-400.0,0.00012999,2]
[361165611,1747315834216,-400.0,0.00012999,2]
[361165612,1747315834226,-400.0,0.00012999,2]
[361165613,1747315834238,-400.0,0.00012999,2]
[361165614,1747315834249,-400.0,0.00012999,2]
[361165615,1747315834258,-400.0,0.00012999,2]
[361165616,1747315834268,-450.0,0.00012999,2]
[361165617,1747315834277,-519.31797812,0.00012999,2]
[361165618,1747315834287,-400.0,0.00012999,2]
[361165619,1747315834297,-400.0,0.00012999,2]
[361165620,1747315834307,-287.40214894,0.00012999,2]
[361165621,1747315834316,-400.0,0.00012999,2]
[361165622,1747315834326,-400.0,0.00012999,2]
[361165623,1747315834335,-400.0,0.00012999,2]
[361165624,1747315834344,-465.2,0.00012999,2]
[361165625,1747315834354,-400.0,0.00012999,2]
[361165626,1747315834364,-400.0,0.00012999,2]
[361165627,1747315834374,-1527.52,0.00012999,2]
[361165628,1747315834385,-400.0,0.00012999,2]
[361165629,1747315834395,-481.09,0.00012999,2]
[361165630,1747315834405,-401.44263175,0.00012999,2]
[361165631,1747315834415,-400.0,0.00012999,2]
[361165632,1747315834425,-400.0,0.00012999,2]
[361165633,1747315834436,-409.93810809,0.00012999,2]
[361165634,1747315834446,-400.0,0.00012999,2]
[361165635,1747315834456,-400.0,0.00012999,2]
[361165636,1747315834469,-400.0,0.00012999,2]
[361165637,1747315834480,-400.0,0.00012999,2]
[361165638,1747315834491,-349.93199167,0.00012999,2]
[361165639,1747315834501,-733.11,0.00012999,2]
[361165640,1747315834511,-400.0,0.00012999,2]
[361165641,1747315834521,-400.0,0.00012999,2]
[361165642,1747315834532,-400.0,0.00012999,2]
[361165643,1747315834543,-400.0,0.00012999,2]
[361165644,1747315834553,-400.0,0.00012999,2]
[361165645,1747315834564,-362.20145185,0.00012999,2]
[361165646,1747315834575,-400.0,0.00012999,2]
[361165647,1747315834584,-400.0,0.00012999,2]
[361165648,1747315834594,-400.0,0.00012999,2]
[361165649,1747315834604,-400.0,0.00012999,2]
[361165650,1747315834614,-400.0,0.00012999,2]
[361165651,1747315834624,-400.0,0.00012999,2]
[361165652,1747315834634,-400.0,0.00012999,2]
[361165653,1747315834644,-404.05382872,0.00012999,2]
[361165654,1747315834655,-400.0,0.00012999,2]
[361165655,1747315834664,-412.7,0.00012999,2]
[361165656,1747315834674,-400.0,0.00012999,2]
[361165657,1747315834684,-400.0,0.00012999,2]
[361165658,1747315834693,-402.19665835,0.00012999,2]
[361165659,1747315834703,-400.0,0.00012999,2]
[361165660,1747315834717,-403.47,0.00012999,2]
[361165661,1747315834726,-400.0,0.00012999,2]
[361165662,1747315834736,-400.0,0.00012999,2]
[361165663,1747315834746,-400.0,0.00012999,2]
[361165664,1747315834756,-400.0,0.00012999,2]
[361165665,1747315834765,-244.73266582,0.00012999,2]
[361165666,1747315834776,-497.47,0.00012999,2]
[361165667,1747315834786,-400.0,0.00012999,2]
[361165668,1747315834796,-400.0,0.00012999,2]
[361165669,1747315834806,-400.0,0.00012999,2]
[361165670,1747315834816,-400.0,0.00012999,2]
[361165671,1747315834826,-886.84,0.00012999,2]
[361165672,1747315834836,-502.8283739,0.00012999,2]
[361165673,1747315834847,-400.0,0.00012999,2]
[361165674,1747315834857,-472.98,0.00012999,2]
[361165675,1747315834867,-400.0,0.00012999,2]
[361165676,1747315834877,-400.0,0.00012999,2]
[361165677,1747315834887,-400.0,0.00012999,2]
[361165678,1747315834897,-400.0,0.00012999,2]
[361165679,1747315834907,-400.0,0.00012999,2]
[361165680,1747315834917,-405.28046771,0.00012999,2]
[361165681,1747315834927,-400.0,0.00012999,2]
[361165682,1747315834936,-400.0,0.00012999,2]
[361165683,1747315834946,-400.0,0.00012999,2]
[361165684,1747315834956,-749.09,0.00012999,2]
[361165685,1747315834969,-400.0,0.00012999,2]
[361165686,1747315834978,-400.0,0.00012999,2]
[361165687,1747315834988,-400.0,0.00012999,2]
[361165688,1747315834998,-400.0,0.00012999,2]
[361165689,1747315835007,-400.0,0.00012999,2]
[361165690,1747315835017,-400.0,0.00012999,2]
[361165691,1747315835027,-400.0,0.00012999,2]
[361165692,1747315835036,-418.03771591,0.00012999,2]
[361165693,1747315835045,-755.97,0.00012999,2]
[361165694,1747315835055,-400.0,0.00012999,2]
[361165695,1747315835065,-401.58205549,0.00012999,2]
[361165696,1747315835075,-403.64365125,0.00012999,2]
[361165697,1747315835088,-400.0,0.00012999,2]
[361165698,1747315835098,-404.8749497,0.00012999,2]
[361165699,1747315835107,-836.36,0.00012999,2]
[361165700,1747315835117,-400.0,0.00012999,2]
[361165701,1747315835128,-400.0,0.00012999,2]
[361165702,1747315835137,-3060.89164829,0.00013,2]
[361165707,1747315837734,-798.0,0.00012322,2]
[361165708,1747315837744,-596.86317887,0.00012968,2]
[361165709,1747315837755,-409.12,0.00012999,2]
[361165710,1747315837764,-3269.77979356,0.00013,2]
[361165711,1747315837794,-2350.81746959,0.00013,2]
[361165712,1747315837806,-741.54000082,0.00013,2]
[361165713,1747315837817,-412.33,0.00013,2]
[361165769,1747315839805,-596.86317887,0.00012977,2]
[361165770,1747315839815,-2629.65179849,0.00013,2]
[361165771,1747315840025,-3583.12810072,0.00013,2]
[361165772,1747315840043,-470.493024,0.00013,2]
[361165773,1747315840055,-3086.45946531,0.00013,2]
[361165774,1747315840067,-687.15858711,0.00013,2]
[361165775,1747315840092,-3699.979966,0.00013,2]
[361165791,1747315842643,-400.0,0.00012999,2]
[361165794,1747315842655,-43185.10902643,0.00013,2]
[361165797,1747315842668,-2127.5000002,0.00013,2]
[361165801,1747315842700,-8027.32769195,0.00013,2]
[361165814,1747315842816,-6907.87113658,0.000129,2]
[361165816,1747315842827,-1653.43122944,0.00013,2]
[361165818,1747315842838,-67549.07103476,0.00013,2]
[361165830,1747315842989,-1736420.2567746,0.00013,2]
[361165834,1747315845727,-596.86317887,0.00012987,2]
[361165835,1747315845737,-269.36687837,0.00012999,2]
[361165836,1747315845749,-130.63312163,0.00012999,2]
[361165837,1747315845760,-400.0,0.00012999,2]
[361165838,1747315845770,-10417.88033677,0.00013,2]
[361165839,1747315845844,-400.0,0.00012999,2]
[361165840,1747315845854,-12176.56614922,0.00013,2]
[361165841,1747315845903,-371.322,0.00013,2]
[361165842,1747315845965,-356.79000028,0.00013,2]
[361165843,1747315846085,-20102.9648736,0.00013,2]
[361165844,1747315846099,-594.34999,0.00013,2]
[361165845,1747316002659,500.0,0.00026552,120]
[361165846,1747316030391,150.0,0.00012784,7]
[361165847,1747316058950,532.75,9.838e-05,2]
[361165856,1747316545726,1000.0,0.00027397,120]
[361165857,1747316600499,500.0,0.00025075,120]
[361165858,1747316600837,500.0,0.00026864,120]
[361165860,1747316615823,151.1,0.00021945,30]
[361165863,1747316989124,-176.28954104,0.0001,2]
[361165864,1747316991723,-187.22757869,0.0001,2]
[361165865,1747316994676,-86.48288027,0.0001,2]
[361165877,1747317031785,-500.0,0.00012,2]
[361165878,1747317031795,-532.75,0.00012102,2]
[361165879,1747317031804,-19941.39,0.00012238,2]
[361165880,1747317031814,-654.28,0.00012243,2]
[361165881,1747317031824,-161.6,0.00012418,2]
[361165882,1747317031833,-588.84,0.00012456,2]
[361165883,1747317031843,-418.85,0.00012616,2]
[361165884,1747317031853,-247.64922239,0.00012667,2]
[361165885,1747317031863,-1000.0,0.00012679,2]
[361165886,1747317031872,-300.0,0.00012815,2]
[361165887,1747317031882,-1178.08577762,0.00012815,2]
[361165888,1747317031898,-21.91422238,0.00012815,2]
[361165889,1747317031908,-17930.97,0.00012816,2]
[361165890,1747317031918,-207.4,0.00012849,2]
[361165891,1747317031928,-150.0,0.00012899,2]
[361165892,1747317031938,-303.9151,0.000129,2]
[361165893,1747317031947,-1118.33476372,0.000129,2]
[361165894,1747317031962,-1116.31618345,0.000129,2]
[361165895,1747317031972,-1939.73171314,0.000129,2]
[361165896,1747317031981,-2475.41211086,0.000129,2]
[361165897,1747317031991,-215.42270776,0.000129,2]
[361165898,1747317032000,-500.0,0.00012973,2]
[361165899,1747317032010,-500.0,0.00012973,2]
[361165900,1747317032020,-500.0,0.00012973,2]
[361165901,1747317032030,-500.0,0.00012973,2]
[361165902,1747317032039,-401.79677019,0.00012973,2]
[361165903,1747317032049,-500.0,0.00012973,2]
[361165904,1747317032059,-350.0,0.00012987,2]
[361165905,1747317032069,-172.45,0.00012998,2]
[361165906,1747317032079,-1709.686,0.00012998,2]
[361165907,1747317032089,-385.77,0.00012999,2]
[361165908,1747317032098,-11.54141864,0.00012999,2]
[361165909,1747317032110,-388.45858136,0.00012999,2]
[361165910,1747317032120,-527.68,0.00012999,2]
[361165911,1747317032130,-54.81944238,0.00012999,2]
[361165912,1747317032142,-410.55055762,0.00012999,2]
[361165913,1747317032151,-190.56,0.00012999,2]
[361165914,1747317032162,-230.57611726,0.00012999,2]
[361165915,1747317032172,-429.26469292,0.00012999,2]
[361165916,1747317032181,-400.0,0.00012999,2]
[361165917,1747317032191,-400.0,0.00012999,2]
[361165918,1747317032201,-186.72233175,0.00012999,2]
[361165919,1747317032214,-478.55302866,0.00012999,2]
[361165920,1747317032223,-521.13568043,0.00012999,2]
[361165922,1747317032234,-400.0,0.00012999,2]
[361165923,1747317032243,-1368.38,0.00012999,2]
[361165925,1747317032253,-400.0,0.00012999,2]
[361165927,1747317032262,-559.06538091,0.00012999,2]
[361165929,1747317032274,-298.76461909,0.00012999,2]
[361165931,1747317032284,-400.0,0.00012999,2]
[361165933,1747317032293,-494.81,0.00012999,2]
[361165934,1747317032303,-400.0,0.00012999,2]
[361165935,1747317032312,-229.12538091,0.00012999,2]
[361165936,1747317032328,-170.87461909,0.00012999,2]
[361165938,1747317032338,-401.00880133,0.00012999,2]
[361165941,1747317032358,-18.10119867,0.00012999,2]
[361165942,1747317032368,-400.0,0.00012999,2]
[361165945,1747317032377,-16.44380633,0.00012999,2]
[361165947,1747317032389,-308.84060142,0.00012999,2]
[361165987,1747317037828,-74.71559225,0.00012999,2]
[361165988,1747317037840,-538.56096648,0.00012999,2]
[361165989,1747317037850,-89.38007013,0.00012999,2]
[361165990,1747317037883,-310.61992987,0.00012999,2]
[361165991,1747317037893,-400.85408625,0.00012999,2]
[361165992,1747317037903,-255.35404836,0.00012999,2]
[361165993,1747317037942,-144.64595164,0.00012999,2]
[361165994,1747317037951,-294.98251271,0.00012999,2]
[361165995,1747317037964,-105.01748729,0.00012999,2]
[361165996,1747317037974,-440.9,0.00012999,2]
[361165997,1747317037984,-400.0,0.00012999,2]
[361165998,1747317037994,-127.13410276,0.00012999,2]
[361165999,1747317038019,-272.86589724,0.00012999,2]
[361166000,1747317038029,-400.0,0.00012999,2]
[361166001,1747317038039,-400.0,0.00012999,2]
[361166002,1747317038049,-311.84022001,0.00012999,2]
[361166159,1747317039879,-501.0,0.00012603,2]
[361166161,1747317039888,-88.15977999,0.00012999,2]
[361166163,1747317039898,-501.16,0.00012999,2]
[361166165,1747317039908,-400.0,0.00012999,2]
[361166167,1747317039918,-400.0,0.00012999,2]
[361166169,1747317039928,-17.50830464,0.00012999,2]
[361166171,1747317039941,-382.49169536,0.00012999,2]
[361166173,1747317039951,-132.20830464,0.00012999,2]
[361166175,1747317039966,-319.54169536,0.00012999,2]
[361166178,1747317039977,-400.0,0.00012999,2]
[361166180,1747317039986,-329.88523964,0.00012999,2]
[361166182,1747317039998,-70.11476036,0.00012999,2]
[361166184,1747317040008,-400.0,0.00012999,2]
[361166186,1747317040017,-400.0,0.00012999,2]
[361166187,1747317040027,-400.0,0.00012999,2]
[361166189,1747317040037,-178.54533564,0.00012999,2]
[361166191,1747317040046,-400.0,0.00012999,2]
[361166193,1747317040056,-400.0,0.00012999,2]
[361166195,1747317040066,-400.0,0.00012999,2]
[361166197,1747317040075,-400.0,0.00012999,2]
[361166199,1747317040085,-400.0,0.00012999,2]
[361166201,1747317040095,-400.0,0.00012999,2]
[361166204,1747317040105,-405.94622774,0.00012999,2]
[361166206,1747317040115,-400.0,0.00012999,2]
[361166208,1747317040125,-406.77566497,0.00012999,2]
[361166210,1747317040135,-400.0,0.00012999,2]
[361166212,1747317040144,-400.0,0.00012999,2]
[361166214,1747317040154,-400.0,0.00012999,2]
[361166216,1747317040163,-400.0,0.00012999,2]
[361166218,1747317040173,-400.0,0.00012999,2]
[361166220,1747317040183,-400.0,0.00012999,2]
[361166222,1747317040193,-400.0,0.00012999,2]
[361166224,1747317040204,-400.0,0.00012999,2]
[361166226,1747317040217,-400.0,0.00012999,2]
[361166228,1747317040227,-400.0,0.00012999,2]
[361166230,1747317040236,-400.0,0.00012999,2]
[361166232,1747317040246,-400.0,0.00012999,2]
[361166234,1747317040256,-400.0,0.00012999,2]
[361166236,1747317040266,-400.0,0.00012999,2]
[361166237,1747317040275,-400.0,0.00012999,2]
[361166239,1747317040286,-400.0,0.00012999,2]
[361166242,1747317040295,-400.0,0.00012999,2]
[361166244,1747317040304,-400.0,0.00012999,2]
[361166245,1747317040314,-400.0,0.00012999,2]
[361166247,1747317040323,-400.0,0.00012999,2]
[361166249,1747317040334,-419.55,0.00012999,2]
[361166252,1747317040343,-400.0,0.00012999,2]
[361166253,1747317040353,-400.0,0.00012999,2]
[361166256,1747317040362,-400.0,0.00012999,2]
[361166258,1747317040372,-400.0,0.00012999,2]
[361166260,1747317040381,-210.66092372,0.00012999,2]
[361166262,1747317040390,-400.0,0.00012999,2]
[361166263,1747317040399,-400.0,0.00012999,2]
[361166265,1747317040409,-400.0,0.00012999,2]
[361166267,1747317040418,-400.0,0.00012999,2]
[361166269,1747317040428,-400.0,0.00012999,2]
[361166271,1747317040437,-400.0,0.00012999,2]
[361166273,1747317040447,-400.0,0.00012999,2]
[361166276,1747317040457,-400.0,0.00012999,2]
[361166278,1747317040471,-400.0,0.00012999,2]
[361166279,1747317040481,-400.0,0.00012999,2]
[361166280,1747317040490,-400.0,0.00012999,2]
[361166282,1747317040500,-400.0,0.00012999,2]
[361166283,1747317040509,-400.0,0.00012999,2]
[361166284,1747317040519,-400.0,0.00012999,2]
[361166285,1747317040529,-499.46,0.00012999,2]
[361166286,1747317040539,-400.0,0.00012999,2]
[361166287,1747317040548,-400.0,0.00012999,2]
[361166288,1747317040558,-544.9650691,0.00012999,2]
[361166289,1747317040568,-400.0,0.00012999,2]
[361166290,1747317040577,-400.0,0.00012999,2]
[361166292,1747317040586,-400.0,0.00012999,2]
[361166294,1747317040596,-400.0,0.00012999,2]
[361166296,1747317040605,-870.35,0.00012999,2]
[361166298,1747317040614,-400.0,0.00012999,2]
[361166300,1747317040624,-400.0,0.00012999,2]
[361166302,1747317040633,-400.0,0.00012999,2]
[361166303,1747317040642,-381.60393988,0.00012999,2]
[361166305,1747317040651,-426.05724864,0.00012999,2]
[361166307,1747317040661,-400.0,0.00012999,2]
[361166309,1747317040671,-400.0,0.00012999,2]
[361166311,1747317040680,-405.02,0.00012999,2]
[361166313,1747317040689,-1118.71,0.00012999,2]
[361166315,1747317040699,-420.88,0.00012999,2]
[361166317,1747317040709,-400.0,0.00012999,2]
[361166319,1747317040722,-790.36082995,0.00012999,2]
[361166321,1747317040736,-25.44917005,0.00012999,2]
[361166323,1747317040747,-276.81357011,0.00012999,2]
[361166326,1747317040763,-211.48642989,0.00012999,2]
[361166328,1747317040773,-400.0,0.00012999,2]
[361166330,1747317040782,-1000.0,0.00012999,2]
[361166332,1747317040792,-400.0,0.00012999,2]
[361166334,1747317040801,-525.1,0.00012999,2]
[361166336,1747317040810,-400.0,0.00012999,2]
[361166338,1747317040820,-178.03,0.00012999,2]
[361166340,1747317040830,-400.0,0.00012999,2]
[361166342,1747317040840,-554.38,0.00012999,2]
[361166344,1747317040849,-400.0,0.00012999,2]
[361166346,1747317040858,-400.0,0.00012999,2]
[361166347,1747317040868,-400.0,0.00012999,2]
[361166349,1747317040877,-400.0,0.00012999,2]
[361166351,1747317040886,-400.0,0.00012999,2]
[361166353,1747317040896,-400.0,0.00012999,2]
[361166355,1747317040909,-400.0,0.00012999,2]
[361166357,1747317040918,-400.0,0.00012999,2]
[361166359,1747317040927,-400.0,0.00012999,2]
[361166361,1747317040937,-400.0,0.00012999,2]
[361166363,1747317040946,-921.57,0.00012999,2]
[361166365,1747317040955,-400.0,0.00012999,2]
[361166367,1747317040968,-657.98,0.00012999,2]
[361166369,1747317040978,-3009.89,0.00012999,2]
[361166371,1747317040987,-400.0,0.00012999,2]
[361166373,1747317040997,-400.0,0.00012999,2]
[361166375,1747317041006,-400.0,0.00012999,2]
[361166377,1747317041016,-400.0,0.00012999,2]
[361166378,1747317041026,-770.09,0.00012999,2]
[361166379,1747317041036,-427.86,0.00012999,2]
[361166380,1747317041046,-400.0,0.00012999,2]
[361166381,1747317041055,-400.0,0.00012999,2]
[361166382,1747317041064,-241.36,0.00012999,2]
[361166383,1747317041073,-400.0,0.00012999,2]
[361166384,1747317041083,-400.0,0.00012999,2]
[361166385,1747317041092,-400.0,0.00012999,2]
[361166386,1747317041106,-3178.32,0.00012999,2]
[361166387,1747317041118,-400.0,0.00012999,2]
[361166388,1747317041129,-472.87,0.00012999,2]
[361166389,1747317041140,-400.0,0.00012999,2]
[361166390,1747317041150,-1963.83,0.00012999,2]
[361166391,1747317041160,-400.0,0.00012999,2]
[361166392,1747317041170,-400.0,0.00012999,2]
[361166393,1747317041179,-400.0,0.00012999,2]
[361166394,1747317041188,-400.0,0.00012999,2]
[361166395,1747317041198,-400.0,0.00012999,2]
[361166396,1747317041208,-441.09,0.00012999,2]
[361166397,1747317041221,-400.0,0.00012999,2]
[361166398,1747317041231,-400.0,0.00012999,2]
[361166399,1747317041241,-400.0,0.00012999,2]
[361166400,1747317041251,-400.0,0.00012999,2]
[361166401,1747317041261,-400.0,0.00012999,2]
[361166402,1747317041271,-400.0,0.00012999,2]
[361166403,1747317041281,-400.0,0.00012999,2]
[361166404,1747317041291,-726.47,0.00012999,2]
[361166405,1747317041300,-400.0,0.00012999,2]
[361166406,1747317041309,-400.0,0.00012999,2]
[361166407,1747317041319,-400.0,0.00012999,2]
[361166408,1747317041329,-400.0,0.00012999,2]
[361166409,1747317041339,-400.0,0.00012999,2]
[361166410,1747317041349,-400.0,0.00012999,2]
[361166411,1747317041359,-400.0,0.00012999,2]
[361166412,1747317041370,-400.0,0.00012999,2]
[361166413,1747317041380,-727.91,0.00012999,2]
[361166414,1747317041390,-400.0,0.00012999,2]
[361166415,1747317041401,-400.0,0.00012999,2]
[361166416,1747317041412,-400.0,0.00012999,2]
[361166417,1747317041423,-400.0,0.00012999,2]
[361166418,1747317041434,-400.0,0.00012999,2]
[361166419,1747317041445,-400.0,0.00012999,2]
[361166420,1747317041458,-400.0,0.00012999,2]
[361166421,1747317041483,-434.39584921,0.00012999,2]
[361166422,1747317041495,-400.0,0.00012999,2]
[361166423,1747317041509,-400.0,0.00012999,2]
[361166424,1747317041521,-400.0,0.00012999,2]
[361166425,1747317041531,-400.0,0.00012999,2]
[361166426,1747317041543,-269.33,0.00012999,2]
[361166427,1747317041554,-722.34,0.00012999,2]
[361166428,1747317041565,-400.0,0.00012999,2]
[361166429,1747317041576,-400.0,0.00012999,2]
[361166430,1747317041590,-400.0,0.00012999,2]
[361166431,1747317041602,-400.0,0.00012999,2]
[361166432,1747317041613,-400.0,0.00012999,2]
[361166433,1747317041625,-448.35,0.00012999,2]
[361166434,1747317041635,-400.0,0.00012999,2]
[361166435,1747317041646,-400.0,0.00012999,2]
[361166436,1747317041657,-400.0,0.00012999,2]
[361166437,1747317041669,-400.0,0.00012999,2]
[361166438,1747317041680,-535.8,0.00012999,2]
[361166439,1747317041691,-400.0,0.00012999,2]
[361166440,1747317041702,-457.69,0.00012999,2]
[361166441,1747317041719,-469.58,0.00012999,2]
[361166442,1747317041730,-400.0,0.00012999,2]
[361166443,1747317041742,-44959.06,0.00012999,2]
[361166444,1747317041753,-400.0,0.00012999,2]
[361166445,1747317041764,-400.0,0.00012999,2]
[361166446,1747317041774,-400.0,0.00012999,2]
[361166447,1747317041786,-400.0,0.00012999,2]
[361166448,1747317041796,-400.0,0.00012999,2]
[361166449,1747317041807,-400.0,0.00012999,2]
[361166450,1747317041817,-400.0,0.00012999,2]
[361166451,1747317041828,-950.73,0.00012999,2]
[361166452,1747317041838,-400.0,0.00012999,2]
[361166453,1747317041849,-463.55,0.00012999,2]
[361166454,1747317041859,-1463.88,0.00012999,2]
[361166455,1747317041870,-475.16,0.00012999,2]
[361166456,1747317041880,-400.0,0.00012999,2]
[361166457,1747317041890,-400.0,0.00012999,2]
[361166458,1747317041901,-493.97,0.00012999,2]
[361166459,1747317041910,-400.0,0.00012999,2]
[361166460,1747317041920,-408.34,0.00012999,2]
[361166461,1747317041930,-400.0,0.00012999,2]
[361166462,1747317041940,-400.0,0.00012999,2]
[361166463,1747317041949,-400.0,0.00012999,2]
[361166464,1747317041958,-400.0,0.00012999,2]
[361166465,1747317041974,-448.02,0.00012999,2]
[361166466,1747317041984,-400.0,0.00012999,2]
[361166467,1747317041994,-400.0,0.00012999,2]
[361166468,1747317042004,-400.0,0.00012999,2]
[361166469,1747317042013,-400.0,0.00012999,2]
[361166470,1747317042023,-849.89,0.00012999,2]
[361166471,1747317042032,-400.0,0.00012999,2]
[361166472,1747317042042,-400.0,0.00012999,2]
[361166473,1747317042052,-400.0,0.00012999,2]
[361166474,1747317042061,-400.0,0.00012999,2]
[361166475,1747317042071,-400.0,0.00012999,2]
[361166476,1747317042080,-400.0,0.00012999,2]
[361166477,1747317042089,-400.0,0.00012999,2]
[361166478,1747317042099,-423.63,0.00012999,2]
[361166479,1747317042108,-400.0,0.00012999,2]
[361166480,1747317042118,-400.0,0.00012999,2]
[361166481,1747317042127,-400.0,0.00012999,2]
[361166482,1747317042137,-400.0,0.00012999,2]
[361166483,1747317042146,-400.0,0.00012999,2]
[361166484,1747317042155,-400.0,0.00012999,2]
[361166485,1747317042164,-400.0,0.00012999,2]
[361166486,1747317042174,-43224.45763575,0.00013,2]
[361166487,1747317042184,-7271531.31271529,0.00013,2]
[361166488,1747317042197,-434.42037165,0.00013,2]
[361166489,1747317042208,-307.4058945,0.00013,2]
[361166490,1747317042224,-769.5358473,0.00013,2]
[361166491,1747317042236,-872.72705518,0.00013,2]
[361166492,1747317042247,-4177.66357141,0.00013,2]
[361166493,1747317042258,-234941.805,0.00013,2]
[361166552,1747317043087,-400.0,0.00012999,2]
[361166553,1747317043097,-2930.00005,0.00013,2]
[361166554,1747317043109,-25300.0,0.00013,2]
[361166555,1747317043121,-1578.89658641,0.00013,2]
[361166556,1747317043201,-611066.88004593,0.00013,2]
[361166557,1747317043369,-1456868.18277709,0.00013,2]
[361166575,1747317045754,-781.81,0.00012999,2]
[361166576,1747317045764,-226.1654275,0.00012999,2]
[361166577,1747317045774,-400.0,0.00012999,2]
[361166578,1747317045784,-508.74,0.00012999,2]
[361166579,1747317045794,-79807.35657249,0.00013,2]
[361166580,1747317045814,-1919.9,0.00013,2]
[361166581,1747317045826,-81700.0,0.00013,2]
[361166582,1747317045838,-871.76535528,0.00013,2]